bitfinex/quotes_SOLUSD_20241126
["timestamp","ask_amount","ask_price","bid_price","bid_amount"]
[1732599153628,4.1999,238.1,238.02,12.53702618]
[1732599154754,43.776884,238.1,238.02,12.53702618]
[1732599155125,23.776884,238.1,238.02,12.53702618]
[1732599155834,23.776884,238.1,238.02,16.73822618]
[1732599158431,16.73682618,238.11,238.02,16.73822618]
[1732599158655,27.976784,238.1,238.02,16.73822618]
[1732599160033,23.776884,238.1,238.02,16.73822618]
[1732599160237,12.53702618,238.07,237.98,22.75922618]
[1732599160555,27.976784,238.1,237.94,12.53702618]
[1732599160556,12.53702618,238.03,237.94,12.53702618]
[1732599160735,12.53702618,238.01,237.93,16.1194]
[1732599161069,12.53702618,238.01,237.93,20.3222]
[1732599161358,12.53702618,237.97,237.93,16.1194]
[1732599161760,12.53702618,237.97,237.9,12.53702618]
[1732599162052,16.73902618,237.99,237.9,16.74042618]
[1732599162638,12.53702618,238.01,237.94,12.53702618]
[1732599163351,23.776884,238.02,237.94,12.53702618]
[1732599163753,12.53702618,238.03,237.94,12.53702618]
[1732599163957,12.53702618,238.03,237.96,12.53702618]
[1732599164145,12.53702618,238.03,237.97,4.2022]
[1732599164344,12.53702618,238.03,237.96,12.53702618]
[1732599164549,12.53702618,238.03,237.94,12.53702618]
[1732599164755,12.53702618,238.01,237.94,16.73972618]
[1732599164956,12.53702618,238.01,237.87,16.1194]
[1732599164957,12.53702618,237.99,237.92,12.53702618]
[1732599165256,12.53702618,238.01,237.92,12.53702618]
[1732599166450,12.53702618,238.01,237.93,4.2029]
[1732599166646,12.53702618,238.01,237.94,12.53702618]
[1732599167463,12.53702618,238.01,237.94,16.73972618]
[1732599167664,12.53702618,238.03,237.94,16.73972618]
[1732599167868,23.776884,238.02,237.94,16.73972618]
[1732599173555,12.53702618,238.03,237.94,4.2027]
[1732599173769,14.72824897,238.05,237.96,12.53702618]
[1732599173947,2.19122279,238.05,237.98,12.53702618]
[1732599174149,12.53702618,238.07,237.98,12.53702618]
[1732599174456,20.0,238.03,237.98,12.53702618]
[1732599175567,4.2003,238.08,238.0,12.53702618]
[1732599176065,12.53702618,238.09,238.02,12.53702618]
[1732599176249,16.73712618,238.09,238.02,12.53702618]
[1732599176749,20.0,238.06,238.02,12.53702618]
[1732599178070,16.73712618,238.09,238.02,12.53702618]
[1732599178071,23.776884,238.08,238.02,12.53702618]
[1732599180271,23.776884,238.06,238.02,12.53702618]
[1732599180753,23.776884,238.06,238.0,12.53702618]
[1732599181653,23.776884,238.06,237.98,12.53702618]
[1732599181654,4.2007,238.05,237.98,12.53702618]
[1732599182367,23.776884,238.04,237.97,16.4516]
[1732599183776,4.2005,238.07,238.0,12.53702618]
[1732599184074,23.776884,238.06,237.98,12.53702618]
[1732599184569,20.0,238.03,237.98,12.53702618]
[1732599185144,23.776884,238.06,238.0,12.53702618]
[1732599185544,23.776884,238.08,238.0,12.53702618]
[1732599185769,27.977184,238.08,238.0,12.53702618]
[1732599187052,23.776884,238.08,238.0,16.73852618]
[1732599187375,27.976784,238.1,238.02,12.53702618]
[1732599187546,12.53702618,238.09,238.0,12.53702618]
[1732599187744,12.53702618,238.05,237.97,16.4516]
[1732599187950,23.776884,238.04,237.97,16.4516]
[1732599188769,23.776884,238.04,237.98,12.53702618]
[1732599188965,23.776884,238.06,237.98,12.53702618]
[1732599189168,23.776884,238.06,237.97,16.4516]
[1732599189375,23.776884,238.08,238.02,12.53702618]
[1732599191654,16.73682618,238.11,238.04,12.53702618]
[1732599191859,23.776884,238.1,238.04,12.53702618]
[1732599193881,27.976784,238.1,238.04,12.53702618]
[1732599194177,23.776884,238.08,238.0,12.53702618]
[1732599194359,12.53702618,238.07,238.0,12.53702618]
[1732599194559,23.776884,238.06,238.0,12.53702618]
[1732599194958,23.776884,238.06,237.98,12.53702618]
[1732599195278,23.776884,238.02,237.97,16.4516]
[1732599195583,23.776884,238.02,237.95,12.53702618]
[1732599195876,12.53702618,238.01,237.93,16.73982618]
[1732599196070,23.776884,238.0,237.93,16.73982618]
[1732599196460,16.2472961,238.1,237.97,12.53702618]
[1732599196655,23.776884,238.06,237.99,12.53702618]
[1732599196968,23.776884,238.04,237.97,12.53702618]
[1732599197281,12.53702618,238.03,237.95,12.53702618]
[1732599197452,23.776884,238.02,237.95,12.53702618]
[1732599197774,23.776884,238.04,237.97,12.53702618]
[1732599197968,23.776884,238.02,237.97,12.53702618]
[1732599199855,12.53702618,238.07,237.97,12.53702618]
[1732599200055,12.53702618,238.09,238.01,12.53702618]
[1732599200280,20.0,238.06,238.01,12.53702618]
[1732599201201,23.776884,238.05,238.01,12.53702618]
[1732599203887,12.53702618,238.11,238.01,16.73842618]
[1732599204180,12.53702618,238.13,238.05,12.53702618]
[1732599205188,23.776884,238.11,238.05,12.53702618]
[1732599206380,27.976384,238.12,238.05,12.53702618]
[1732599207774,16.73672618,238.11,238.05,12.53702618]
[1732599207975,23.776884,238.1,238.05,12.53702618]
[1732599208184,23.776884,238.1,238.03,16.73812618]
[1732599209775,4.1994,238.13,238.07,12.53702618]
[1732599210078,12.53702618,238.15,238.07,12.53702618]
[1732599211269,16.73602618,238.15,238.07,12.53702618]
[1732599211467,23.776884,238.14,238.07,12.53702618]
[1732599212294,27.976084,238.14,238.07,12.53702618]
[1732599212497,23.776884,238.12,238.05,12.53702618]
[1732599212793,23.776884,238.1,238.03,12.53702618]
[1732599214468,23.776884,238.1,238.03,16.73812618]
[1732599215498,12.53702618,238.13,238.05,12.53702618]
[1732599215671,4.1991,238.15,238.07,12.53702618]
[1732599215984,23.01610624,238.16,238.07,12.53702618]
[1732599216216,27.21490624,238.16,238.07,12.53702618]
[1732599216698,27.21490624,238.16,238.07,16.73722618]
[1732599217173,23.776884,238.15,238.07,16.73722618]
[1732599218090,23.776884,238.15,238.08,15.2989]
[1732599219174,23.776884,238.15,238.08,19.499]
[1732599219682,27.975884,238.15,238.08,19.499]
[1732599220291,23.776884,238.15,238.08,19.499]
[1732599222195,27.975884,238.15,238.08,19.499]
[1732599222496,35.98929949,238.15,238.08,19.499]
[1732599222887,31.79029949,238.15,238.08,19.499]
[1732599223593,8.01341549,238.13,238.08,15.2989]
[1732599223792,23.776884,238.1,238.08,15.2989]
[1732599224095,8.01341549,238.11,238.08,15.2989]
[1732599228497,23.776884,238.12,238.08,15.2989]
[1732599230189,8.01341549,238.15,238.08,15.2989]
[1732599230500,23.776884,238.14,238.08,25.5291]
[1732599242007,8.01341549,238.13,238.08,15.2989]
[1732599242303,23.776884,238.12,238.08,15.2989]
[1732599242810,23.776884,238.1,238.03,21.4691]
[1732599243011,8.01341549,238.09,238.03,25.6702]
[1732599243306,23.776884,238.1,238.03,25.6702]
[1732599243611,23.776884,238.1,238.03,33.68361549]
[1732599245109,8.01341549,238.09,238.03,25.6702]
[1732599245290,23.776884,238.08,238.03,21.4691]
[1732599246615,23.776884,238.09,238.03,29.48251549]
[1732599250888,23.776884,238.11,238.05,8.01341549]
[1732599251697,23.776884,238.12,238.05,8.01341549]
[1732599252211,23.776884,238.12,238.05,12.21411549]
[1732599252601,4.1994,238.13,238.05,12.21411549]
[1732599252602,27.976184,238.13,238.05,12.21411549]
[1732599253494,4.1992,238.14,238.07,8.01341549]
[1732599253690,23.776884,238.15,238.07,8.01341549]
[1732599253894,27.975884,238.15,238.07,8.01341549]
[1732599254096,23.776884,238.15,238.07,8.01341549]
[1732599254312,23.776884,238.15,238.08,4.2002]
[1732599254507,10.47908006,238.16,238.09,8.01341549]
[1732599254794,10.47908006,238.16,238.11,8.01341549]
[1732599254993,10.47908006,238.16,238.13,8.01341549]
[1732599256211,10.47908006,238.16,238.15,8.01341549]
[1732599259816,10.47908006,238.16,238.14,12.21251549]
[1732599260926,10.47908006,238.16,238.15,8.01341549]
[1732599262706,10.47908006,238.16,238.14,8.01341549]
[1732599263019,10.47908006,238.16,238.12,16.4438]
[1732599263227,10.47908006,238.16,238.13,8.01341549]
[1732599263813,10.47908006,238.16,238.14,8.01341549]
[1732599265914,10.47908006,238.16,238.12,16.4438]
[1732599266799,10.47908006,238.16,238.12,20.6433]
[1732599267201,10.47908006,238.16,238.12,28.65671549]
[1732599269416,10.47908006,238.16,238.07,4.2004]
[1732599269715,10.47908006,238.16,238.09,8.01341549]
[1732599270819,10.47908006,238.16,238.09,12.21331549]
[1732599275037,10.47908006,238.16,238.11,8.01341549]
[1732599276403,10.47908006,238.16,238.11,12.21311549]
[1732599281937,10.47908006,238.16,238.07,10.501]
[1732599282241,8.01341549,238.15,238.08,4.2002]
[1732599282616,8.01341549,238.15,238.08,12.21361549]
[1732599282818,10.47908006,238.16,238.08,12.21361549]
[1732599283939,12.21211549,238.17,238.08,12.21361549]
[1732599285334,12.21211549,238.17,238.07,4.2004]
[1732599285637,12.21211549,238.17,238.07,12.21381549]
[1732599286026,12.21211549,238.17,238.07,4.2004]
[1732599286229,12.21211549,238.17,238.07,12.21381549]
[1732599288046,23.776884,238.14,238.06,16.4596]
[1732599288345,8.01341549,238.13,238.06,8.01341549]
[1732599289635,23.776884,238.12,238.04,8.01341549]
[1732599289944,8.01341549,238.11,238.04,8.01341549]
[1732599290147,12.21321549,238.11,238.04,8.01341549]
[1732599293743,4.1998,238.11,238.04,8.01341549]
[1732599294127,150.4209,238.2,238.08,8.01341549]
[1732599294330,8.01341549,238.17,238.08,8.01341549]
[1732599295435,4.1988,238.16,238.08,8.01341549]
[1732599295949,23.776884,238.15,238.08,8.01341549]
[1732599296624,4.1986,238.18,238.1,8.01341549]
[1732599296834,23.776884,238.17,238.1,8.01341549]
[1732599297544,27.975484,238.17,238.1,8.01341549]
[1732599298254,27.975484,238.17,238.09,4.2]
[1732599298545,27.975484,238.17,238.1,8.01341549]
[1732599300337,8.01341549,238.16,238.08,12.21361549]
[1732599300537,23.776884,238.15,238.08,12.21361549]
[1732599301649,23.776884,238.13,238.06,8.01341549]
[1732599302037,23.776884,238.15,238.08,8.01341549]
[1732599302829,8.01341549,238.16,238.08,8.01341549]
[1732599303440,23.776884,238.15,238.07,8.01341549]
[1732599303831,12.21231549,238.16,238.07,8.01341549]
[1732599304445,12.21231549,238.16,238.08,4.2002]
[1732599304839,8.01341549,238.14,238.04,4.2009]
[1732599305039,23.776884,238.13,238.05,8.01341549]
[1732599305340,23.776884,238.13,238.07,8.01341549]
[1732599305959,23.776884,238.13,238.05,8.01341549]
[1732599306132,23.776884,238.13,238.05,12.21401549]
[1732599306546,27.976284,238.13,238.05,12.21401549]
[1732599307344,8.01341549,238.1,238.01,4.2015]
[1732599307660,23.776884,238.09,238.01,4.2015]
[1732599308031,27.977084,238.09,238.01,4.2015]
[1732599308235,8.01341549,238.04,237.95,4.2025]
[1732599308534,27.977084,238.09,237.95,4.2025]
[1732599308535,8.01341549,238.02,237.95,4.2025]
[1732599308740,8.01341549,238.0,237.94,15.5488]
[1732599308937,8.01341549,238.02,237.95,8.01341549]
[1732599309146,38.477284,238.09,237.94,15.5488]
[1732599309147,20.0,238.06,237.99,8.01341549]
[1732599309458,23.776884,238.07,237.99,8.01341549]
[1732599309834,8.01341549,238.08,238.01,8.01341549]
[1732599310051,20.0,238.07,238.01,8.01341549]
[1732599310354,23.776884,238.11,238.01,8.01341549]
[1732599310540,23.776884,238.11,238.03,8.01341549]
[1732599310860,23.776884,238.09,238.01,8.01341549]
[1732599311730,23.776884,238.09,238.01,12.21471549]
[1732599312338,23.776884,238.09,238.03,8.01341549]
[1732599312952,23.776884,238.09,238.01,4.2013]
[1732599312953,27.976984,238.09,238.01,8.01341549]
[1732599314137,8.01341549,238.08,238.01,8.01341549]
[1732599314346,23.776884,238.07,237.99,12.21521549]
[1732599314550,23.776884,238.07,237.99,4.2018]
[1732599314740,23.776884,238.07,237.99,8.01341549]
[1732599316043,23.776884,238.07,238.01,8.01341549]
[1732599316655,4.2001,238.09,238.01,8.01341549]
[1732599316963,23.776884,238.08,238.03,8.01341549]
[1732599317149,23.776884,238.09,238.03,8.01341549]
[1732599317353,4.1992,238.14,238.07,8.01341549]
[1732599317663,8.01341549,238.13,238.05,8.01341549]
[1732599317847,18.4932216,238.13,238.05,8.01341549]
[1732599318238,10.47980611,238.13,238.07,8.01341549]
[1732599318446,10.47980611,238.13,238.11,8.01341549]
[1732599320645,10.47980611,238.13,238.09,12.21331549]
[1732599324545,10.47980611,238.13,238.11,8.01341549]
[1732599326572,10.47980611,238.13,238.12,4.1995]
[1732599329161,10.47980611,238.13,238.1,20.4782]
[1732599330469,10.47980611,238.13,238.11,8.01341549]
[1732599333273,10.47980611,238.13,238.12,4.1995]
[1732599335656,10.47980611,238.13,238.1,16.2784]
[1732599335858,10.47980611,238.13,238.1,20.4781]
[1732599337857,10.47980611,238.13,238.1,4.1997]
[1732599340285,10.47980611,238.13,238.06,10.5013]
[1732599340453,10.47980611,238.13,238.09,8.01341549]
[1732599341483,10.47980611,238.13,238.1,4.1999]
[1732599341679,10.47980611,238.13,238.11,8.01341549]
[1732599345191,10.47980611,238.13,238.12,4.1995]
[1732599348768,10.47980611,238.13,238.12,12.21291549]
[1732599348969,0.4881157,238.21,238.13,16.2342]
[1732599349167,0.4881157,238.21,238.17,8.01341549]
[1732599350575,0.4881157,238.21,238.2,8.01341549]
[1732599352379,0.4881157,238.21,238.2,4.1981]
[1732599352571,0.4881157,238.21,238.18,4.1983]
[1732599353578,0.4881157,238.21,238.16,8.01341549]
[1732599353892,0.4881157,238.21,238.17,4.1986]
[1732599360691,0.4881157,238.21,238.18,8.01341549]
[1732599363480,0.4881157,238.21,238.19,4.1983]
[1732599365377,0.4881157,238.21,238.16,20.0]
[1732599365579,0.4881157,238.21,238.17,4.1986]
[1732599365887,8.50153119,238.21,238.16,20.0]
[1732599366272,0.4881157,238.21,238.15,4.1988]
[1732599369183,0.4881157,238.21,238.16,28.01341549]
[1732599369383,0.4881157,238.21,238.18,8.01341549]
[1732599369781,0.4881157,238.21,238.19,4.1983]
[1732599374883,0.4881157,238.21,238.2,8.01341549]
[1732599376397,0.4881157,238.21,238.2,20.0]
[1732599376603,0.4881157,238.21,238.15,4.1989]
[1732599377903,0.4881157,238.21,238.16,20.0]
[1732599378894,0.4881157,238.21,238.17,4.1986]
[1732599380790,0.4881157,238.21,238.15,20.0]
[1732599380999,0.4881157,238.21,238.16,4.1988]
[1732599384102,12.69943119,238.21,238.09,4.2]
[1732599384405,8.01341549,238.17,238.09,4.2]
[1732599384709,8.01341549,238.17,238.1,8.01341549]
[1732599384910,8.01341549,238.19,238.1,8.01341549]
[1732599385212,8.50153119,238.21,238.12,8.01341549]
[1732599386098,0.4881157,238.21,238.09,20.5002]
[1732599386408,0.4881157,238.21,238.16,8.01341549]
[1732599387695,0.4881157,238.21,238.17,4.1986]
[1732599388503,0.4881157,238.21,238.14,8.01341549]
[1732599388714,0.4881157,238.21,238.15,4.199]
[1732599389117,8.01341549,238.2,238.13,4.1992]
[1732599389413,8.01341549,238.18,238.1,12.21321549]
[1732599391112,8.01341549,238.2,238.12,8.01341549]
[1732599392510,8.01341549,238.2,238.13,4.1993]
[1732599399625,0.4881157,238.21,238.13,4.1993]
[1732599399921,8.50153119,238.21,238.13,4.1993]
[1732599400737,0.4881157,238.21,238.16,8.01341549]
[1732599401103,0.4881157,238.21,238.18,8.01341549]
[1732599401834,0.4881157,238.21,238.19,4.1983]
[1732599402324,0.4881157,238.21,238.16,8.01341549]
[1732599402505,0.4881157,238.21,238.14,12.21261549]
[1732599403524,0.4881157,238.21,238.09,14.7002]
[1732599403703,0.4881157,238.21,238.13,8.01341549]
[1732599403904,0.4881157,238.21,238.12,20.0]
[1732599404105,0.4881157,238.21,238.09,14.7002]
[1732599404106,0.4881157,238.21,238.13,8.01341549]
[1732599404519,8.01341549,238.19,238.12,20.0]
[1732599405515,8.01341549,238.19,238.13,4.1993]
[1732599406709,8.01341549,238.19,238.1,8.01341549]
[1732599406909,8.01341549,238.19,238.11,4.1997]
[1732599415029,23.776884,238.18,238.11,4.1997]
[1732599420533,23.776884,238.18,238.12,8.01341549]
[1732599420733,8.01341549,238.19,238.12,8.01341549]
[1732599420931,23.776884,238.2,238.12,8.01341549]
[1732599421426,23.776884,238.2,238.08,14.7008]
[1732599421629,23.776884,238.2,238.11,8.01341549]
[1732599422828,23.776884,238.2,238.12,4.1995]
[1732599425827,23.776884,238.2,238.11,8.01341549]
[1732599425828,23.776884,238.18,238.09,8.01341549]
[1732599426923,23.776884,238.16,238.09,8.01341549]
[1732599427126,8.01341549,238.15,238.05,4.2007]
[1732599427445,8.01341549,238.13,238.05,4.2007]
[1732599428332,8.01341549,238.13,238.06,8.01341549]
[1732599429637,8.01341549,238.13,238.01,16.1501]
[1732599429822,8.01341549,238.13,238.06,8.01341549]
[1732599430753,8.01341549,238.13,238.06,12.21381549]
[1732599431845,23.776884,238.12,238.01,16.1501]
[1732599432030,12.21281549,238.13,238.01,4.2015]
[1732599432031,8.01341549,238.08,238.01,4.2015]
[1732599432231,8.01341549,238.06,238.0,8.01341549]
[1732599432547,23.776884,238.05,237.98,8.01341549]
[1732599433452,8.01341549,238.08,238.0,8.01341549]
[1732599433755,23.776884,238.07,238.0,12.21491549]
[1732599436541,27.977284,238.07,237.96,24.2023]
[1732599436741,23.776884,238.03,237.96,4.2023]
[1732599436937,8.01341549,238.06,237.98,8.01341549]
[1732599437139,4.2004,238.07,238.0,8.01341549]
[1732599437338,23.776884,238.06,238.0,8.01341549]
[1732599437545,23.776884,238.09,238.02,8.01341549]
[1732599438760,27.976984,238.09,238.02,8.01341549]
[1732599439737,23.776884,238.09,238.02,12.21471549]
[1732599442451,23.776884,238.09,238.04,8.01341549]
[1732599442638,23.776884,238.11,238.06,8.01341549]
[1732599442847,23.776884,238.12,238.06,8.01341549]
[1732599443751,23.776884,238.12,238.08,8.01341549]
[1732599444555,15.2267,238.13,238.08,8.01341549]
[1732599444760,22.407,238.18,238.1,8.01341549]
[1732599444963,15.9209,238.18,238.14,8.01341549]
[1732599446161,23.776884,238.17,238.14,8.01341549]
[1732599446346,4.1977,238.23,238.16,8.01341549]
[1732599446751,4.1978,238.22,238.16,8.01341549]
[1732599446951,34.61791549,238.24,238.16,8.01341549]
[1732599447446,30.42041549,238.24,238.16,8.01341549]
[1732599447768,8.01341549,238.22,238.14,8.01341549]
[1732599448065,24.2649997,238.21,238.14,8.01341549]
[1732599448641,0.4881157,238.21,238.16,8.01341549]
[1732599449051,0.4881157,238.21,238.18,8.01341549]
[1732599449754,0.4881157,238.21,238.09,14.7002]
[1732599449755,0.4881157,238.21,238.16,8.01341549]
[1732599450959,0.4881157,238.21,238.14,8.01341549]
[1732599451169,24.2649997,238.21,238.14,8.01341549]
[1732599451346,28.4629997,238.21,238.14,8.01341549]
[1732599451865,24.2649997,238.21,238.14,8.01341549]
[1732599452057,24.2649997,238.21,238.14,12.21251549]
[1732599452370,24.2649997,238.21,238.14,8.01341549]
[1732599453772,24.2649997,238.21,238.14,12.21251549]
[1732599460063,28.4628997,238.21,238.14,12.21251549]
[1732599460273,28.4628997,238.21,238.14,4.1991]
[1732599460777,23.776884,238.19,238.12,4.1995]
[1732599462957,0.4881157,238.21,238.13,8.01341549]
[1732599464074,0.4881157,238.21,238.14,4.1992]
[1732599466166,0.4881157,238.21,238.15,8.01341549]
[1732599467185,0.4881157,238.21,238.16,4.1988]
[1732599471770,0.4881157,238.21,238.15,12.21241549]
[1732599477684,0.4881157,238.21,238.17,8.01341549]
[1732599478084,0.4881157,238.21,238.18,4.1985]
[1732599480471,0.4881157,238.21,238.16,4.1988]
[1732599480673,0.4881157,238.21,238.15,20.7683]
[1732599486784,0.4881157,238.21,238.16,8.01341549]
[1732599487002,0.4881157,238.21,238.18,8.01341549]
[1732599488176,0.4881157,238.21,238.16,8.01341549]
[1732599488881,0.4881157,238.21,238.17,4.1986]
[1732599490706,0.4881157,238.21,238.15,16.5693]
[1732599490894,0.4881157,238.21,238.16,4.1988]
[1732599493809,8.50153119,238.21,238.13,4.1993]
[1732599494889,0.4881157,238.21,238.14,8.01341549]
[1732599495900,0.4881157,238.21,238.15,4.199]
[1732599499815,0.4881157,238.21,238.15,12.21241549]
[1732599502617,0.4881157,238.21,238.17,8.01341549]
[1732599503924,0.4881157,238.21,238.18,4.1985]
[1732599505609,0.4881157,238.21,238.19,8.01341549]
[1732599506831,0.4881157,238.21,238.2,4.1981]
[1732599513318,0.4881157,238.21,238.2,12.21151549]
[1732599513517,0.4881157,238.21,238.2,20.0]
[1732599513738,0.4881157,238.21,238.2,8.01341549]
[1732599514442,0.4881157,238.21,238.19,4.1983]
[1732599515526,0.4881157,238.21,238.2,12.21151549]
[1732599519643,0.4881157,238.21,238.2,11.83852369]
[1732599522436,0.4881157,238.21,238.2,35.61540769]
[1732599522745,0.4881157,238.21,238.2,41.67260769]
[1732599524731,1.57e-05,238.21,238.2,41.67260769]
[1732599525124,1.57e-05,238.21,238.2,51.67260769]
[1732599526538,9.42582433,238.38,238.22,10.0]
[1732599526730,9.42582433,238.38,238.31,8.01341549]
[1732599526926,17.43923982,238.38,238.31,8.01341549]
[1732599527343,15.2842,238.47,238.37,8.01341549]
[1732599527521,15.2842,238.47,238.4,8.01341549]
[1732599527847,8.50153119,238.44,238.36,8.01341549]
[1732599528743,8.50153119,238.44,238.36,12.20851549]
[1732599528921,0.4881157,238.44,238.38,8.01341549]
[1732599529322,0.4881157,238.44,238.43,8.01341549]
[1732599530244,0.4881157,238.44,238.39,20.0]
[1732599530418,0.4881157,238.44,238.39,28.01341549]
[1732599530738,0.4881157,238.44,238.39,32.20811549]
[1732599531127,0.4881157,238.44,238.39,12.20811549]
[1732599531320,0.4881157,238.44,238.39,8.01341549]
[1732599531521,0.4881157,238.44,238.37,12.20841549]
[1732599532937,0.4881157,238.44,238.39,8.01341549]
[1732599533135,0.4881157,238.44,238.41,8.01341549]
[1732599533526,0.4881157,238.44,238.43,8.01341549]
[1732599536825,0.4881157,238.44,238.43,12.20751549]
[1732599538535,0.4881157,238.44,238.43,4.1941]
[1732599538735,0.4881157,238.44,238.43,12.20751549]
[1732599539334,29.8148566,238.49,238.43,22.69271549]
[1732599539655,29.8148566,238.49,238.48,8.01341549]
[1732599540233,29.8148566,238.49,238.46,20.0]
[1732599540441,29.8148566,238.49,238.48,8.01341549]
[1732599540648,29.8148566,238.49,238.48,12.20661549]
[1732599541950,29.8148566,238.49,238.46,24.1934]
[1732599542148,29.8148566,238.49,238.48,8.01341549]
[1732599542952,29.8148566,238.49,238.42,4.1941]
[1732599543155,29.8148566,238.49,238.47,8.01341549]
[1732599543733,34.0078566,238.49,238.4,4.1944]
[1732599543932,34.0078566,238.49,238.44,8.01341549]
[1732599545150,29.8148566,238.49,238.44,8.01341549]
[1732599545449,29.8148566,238.49,238.46,8.01341549]
[1732599545825,29.8148566,238.49,238.48,8.01341549]
[1732599550256,29.8148566,238.49,238.48,12.20661549]
[1732599562960,9.58574584,238.6,238.48,12.20661549]
[1732599563259,9.58574584,238.6,238.59,8.01341549]
[1732599564844,6.061,238.66,238.59,12.20461549]
[1732599565043,6.061,238.66,238.62,8.01341549]
[1732599565246,10.2511,238.66,238.62,8.01341549]
[1732599566261,20.0,238.66,238.62,8.01341549]
[1732599567463,24.1902,238.66,238.62,8.01341549]
[1732599569644,0.4881157,238.68,238.64,8.01341549]
[1732599569854,24.2649997,238.68,238.64,8.01341549]
[1732599570145,24.2649997,238.68,238.66,8.01341549]
[1732599570865,28.4546997,238.68,238.66,8.01341549]
[1732599571071,4.6778157,238.68,238.66,8.01341549]
[1732599572858,0.4881157,238.68,238.67,8.01341549]
[1732599574155,4.6778157,238.68,238.56,4.1918]
[1732599574466,4.6778157,238.68,238.64,8.01341549]
[1732599576260,4.6778157,238.68,238.66,8.01341549]
[1732599580047,0.4881157,238.68,238.66,8.01341549]
[1732599580256,0.4881157,238.68,238.54,16.2185]
[1732599580257,0.4881157,238.68,238.64,8.01341549]
[1732599580467,0.4881157,238.68,238.66,8.01341549]
[1732599581852,0.4881157,238.68,238.66,12.20341549]
[1732599586561,0.4881157,238.68,238.67,42.60816196]
[1732599586955,0.4881157,238.68,238.67,10.5545]
[1732599587587,0.4881157,238.68,238.67,42.60816196]
[1732599588378,0.4881157,238.68,238.67,10.5545]
[1732599591876,0.4881157,238.68,238.67,18.56791549]
[1732599594578,0.4881157,238.68,238.67,4.1898]
[1732599594777,0.4881157,238.68,238.67,8.01341549]
[1732599596368,0.4881157,238.68,238.67,12.20321549]
[1732599602469,15.492,238.81,238.7,20.0]
[1732599602674,15.492,238.81,238.77,8.01341549]
[1732599603188,15.492,238.81,238.7,20.0]
[1732599603368,15.492,238.81,238.76,8.01341549]
[1732599603568,15.492,238.81,238.77,8.01341549]
[1732599604297,20.0,238.83,238.78,8.01341549]
[1732599605489,20.0,238.83,238.77,8.01341549]
[1732599606593,24.187,238.83,238.77,8.01341549]
[1732599606888,4.187,238.83,238.77,8.01341549]
[1732599607093,23.776884,238.82,238.76,8.01341549]
[1732599607590,27.964184,238.82,238.76,8.01341549]
[1732599609079,27.964184,238.82,238.75,4.1884]
[1732599609080,24.187,238.84,238.77,8.01341549]
[1732599609282,32.20041549,238.84,238.76,8.01341549]
[1732599609881,8.01341549,238.82,238.75,8.01341549]
[1732599610795,23.776884,238.81,238.71,24.1891]
[1732599610985,23.776884,238.81,238.73,8.01341549]
[1732599611799,4.1876,238.8,238.73,8.01341549]
[1732599612585,4.1876,238.8,238.74,8.01341549]
[1732599613384,23.776884,238.81,238.74,8.01341549]
[1732599613588,31.79029949,238.81,238.74,8.01341549]
[1732599614004,35.97769949,238.81,238.74,8.01341549]
[1732599617182,35.97769949,238.81,238.76,8.01341549]
[1732599617183,23.776884,238.81,238.76,8.01341549]
[1732599617497,23.776884,238.82,238.77,8.01341549]
[1732599617706,20.0,238.83,238.77,8.01341549]
[1732599618582,24.187,238.84,238.77,8.01341549]
[1732599619604,4.187,238.84,238.79,8.01341549]
[1732599619897,20.0,238.83,238.79,8.01341549]
[1732599620802,20.0,238.83,238.76,4.1883]
[1732599621102,23.776884,238.84,238.78,8.01341549]
[1732599621305,8.01341549,238.86,238.78,8.01341549]
[1732599621518,20.0,238.83,238.78,8.01341549]
[1732599623601,20.0,238.84,238.78,7.98959891]
[1732599625675,24.1869,238.84,238.78,7.98959891]
[1732599632482,32.20031549,238.84,238.77,8.01341549]
[1732599633383,8.01341549,238.81,238.75,15.0562]
[1732599633806,8.01341549,238.81,238.74,8.01341549]
[1732599633995,8.01341549,238.81,238.73,8.01341549]
[1732599634584,4.1876,238.8,238.73,8.01341549]
[1732599636993,8.01341549,238.82,238.74,8.01341549]
[1732599637186,8.01341549,238.82,238.75,8.01341549]
[1732599638209,4.1874,238.81,238.75,8.01341549]
[1732599639206,8.01341549,238.77,238.63,15.4399]
[1732599639403,8.01341549,238.71,238.63,15.4399]
[1732599639603,8.01341549,238.71,238.63,23.45331549]
[1732599639984,20.0,238.66,238.57,15.4399]
[1732599640283,23.776884,238.63,238.57,15.4399]
[1732599641309,8.01341549,238.66,238.58,8.01341549]